{"text_format":"3","workbook":"xlsx","n_sheets":3,"sheets":["Diario_Imp","Instructivo","Diario_Dig"],"not_rendered":{"defined_names":1},"read":"whole","date_system":"1900"}

{"sheet":"Diario_Imp","index":0,"n_rows":19,"n_cols":37,"rows_kept":19,"merged":[[0,0,0,36],[1,0,1,1],[1,2,1,5],[1,8,1,15],[1,16,1,17],[1,19,1,36],[2,0,3,0],[2,1,3,1],[2,2,3,2],[2,3,3,3],[2,4,3,4],[2,5,3,5],[2,6,3,6],[2,7,3,7],[2,8,3,8],[2,9,3,9],[2,10,3,10],[2,11,3,11],[2,12,3,12],[2,13,3,13],[2,14,3,14],[2,15,3,15],[2,16,3,16],[2,17,3,17],[2,18,3,18],[2,19,3,19],[2,20,3,20],[2,21,3,21],[2,22,3,22],[2,24,3,24],[2,25,3,25],[2,26,3,26],[2,27,3,27],[2,28,3,28],[2,29,3,29],[2,30,3,30],[2,31,3,31],[2,32,3,32],[2,33,3,33],[2,35,3,35],[2,36,3,36],[16,16,18,22]]}
[]
["  Hospital / Udad Médica:",{"$nulls":5},"  Servicio / Área:",{"$nulls":9},"Turno:",null,"  Tabajo Social:"]
["Cama","Nombre del Paciente","Edad","Sexo","Diagnóstico / Motivo de consulta","Fecha de ingreso","Estado de salud","Religión","Pertinencia cultural","Entrega de informes sociales a familiares","Banco de sangre","Cumplio donación de sangre","Cédula de Estudio Social y valoración Socioeconómica","lista de pertenencias ","Dinamica familiar (riesgo social)","Red de apoyo ","Familiar responsable","Número de telefono ","Lugar de Residencia","Orientación","Notas de Trabajo Social ","Caso Médico Legal","Ruta NAME",null,"Localización de Familiares","Gestión de\nAlbergue","Gestión Traslado / Estudios","Coordinación interinstitucional","Coordinación extrainstitucional","Pase de Visita","Elaboración de constancias y citatorios.","Visita Domiciliaria","Trámite Alta","Referencia",null,"Defunción","Observaciones / Notas"]
[{"$nulls":23},"Código violeta",{"$nulls":10},"Contrareferencia"]
{"$rows_empty":11}
[{"$nulls":8},{"$f":"SUM(I5:I15)","v":0},{"$f":"SUM(J5:J15)","v":0},{"$f":"SUM(K5:K15)","v":0},{"$f":"SUM(L5:L15)","v":0},null,{"$f":"SUM(N5:N15)","v":0},null,{"$f":"SUM(P5:P15)","v":0},{"$nulls":3},{"$f":"SUM(T5:T15)","v":0},{"$f":"SUM(U5:U15)","v":0},{"$f":"SUM(V5:V15)","v":0},{"$f":"SUM(W5:W15)","v":0},{"$f":"SUM(X5:X15)","v":0},null,{"$f":"SUM(Z5:Z15)","v":0},0,0,0,0,0,null,null,{"$f":"SUM(AH5:AH15)","v":0},{"$f":"SUM(AI5:AI15)","v":0},{"$f":"SUM(AJ5:AJ15)","v":0}]
[null,null,"M",{"$f":"COUNTIF(D5:D15, \"M\")","v":0},null,"D",{"$f":"COUNTIF(G5:G15, \"D\")","v":0},{"$nulls":4},"E",{"$f":"COUNTIF(M5:M15, \"E\")","v":0},"F",{"$f":"COUNTIF(O5:O15, \"F\")","v":0},null,"Firma y Sello:_________________________________________________",{"$nulls":6},"R",{"$f":"COUNTIF(Y5:Y15, \"R\")","v":0},{"$nulls":5},"R",{"$f":"COUNTIF(AF5:AF15, \"R\")","v":0},"MB",{"$f":"COUNTIF(AG5:AG15, \"MB\")","v":0}]
[null,null,"F",{"$f":"COUNTIF(D5:D15, \"F\")","v":0},null,"G",{"$f":"COUNTIF(G5:G15, \"G\")","v":0},{"$nulls":4},"P",{"$f":"COUNTIF(M5:M15, \"P\")","v":0},"A",{"$f":"COUNTIF(O5:O15, \"A\")","v":0},{"$nulls":8},"P",{"$f":"COUNTIF(Y5:Y15, \"P\")","v":0},{"$nulls":5},"P",{"$f":"COUNTIF(AF5:AF15, \"P\")","v":0},"AV",{"$f":"COUNTIF(AG5:AG15, \"AV\")","v":0}]
[null,null,"O",{"$f":"COUNTIF(D5:D15, \"O\")","v":0},null,"MG",{"$f":"COUNTIF(G5:G15, \"MG\")","v":0},{"$nulls":4},"N",{"$f":"COUNTIF(M5:M15, \"N\")","v":0},"D",{"$f":"COUNTIF(O5:O15, \"D\")","v":0},{"$nulls":8},"N",{"$f":"COUNTIF(Y5:Y15, \"N\")","v":0},{"$nulls":5},"N",{"$f":"COUNTIF(AF5:AF15, \"N\")","v":0},"AM",{"$f":"COUNTIF(AG5:AG15, \"AM\")","v":0}]

{"sheet":"Instructivo","index":1,"n_rows":39,"n_cols":2,"rows_kept":39,"merged":[[0,0,0,1],[2,0,2,1],[3,0,3,1],[4,0,4,1],[5,0,5,1],[6,0,6,1],[7,0,7,1],[8,0,8,1],[9,0,9,1],[10,0,10,1],[19,0,22,0],[23,0,24,0]]}
["INSTRUCTIVO PARA EL LLENADO DEL REPORTE DIARIO DE TRABAJO SOCIAL"]
[]
["1. Objetivo"]
["Estandarizar el registro de intervenciones de Trabajo Social en pacientes hospitalizados, garantizando continuidad de la atención, seguimiento por turnos y trazabilidad de las acciones realizadas hasta la resolución del caso."]
["2. Alcance"]
["Aplica a todo el personal de Trabajo Social de la unidad hospitalaria, en los turnos matutino, vespertino, nocturno y jornada acumulada."]
["3. Lineamientos Generales"]
["El reporte es acumulativo por paciente durante su estancia hospitalaria."]
["Cada turno deberá:"]
["Revisar lo registrado previamente, actualizar únicamente los campos con acciones realizadas en su turno, utilizar lenguaje claro, técnico y breve, evitar abreviaturas no institucionales, registrar con fecha y turno implícito (según formato)"]
["4. Instrucciones de llenado por campo"]
["Cama: Registra el número de cama asignada al paciente","Localización de familiares: \"R\" Realizada / \"P\" En proceso / \"N\" No necesaria."]
["Nombre del paciente: Nombre completo sin abreviaturas.","Gestión de albergue: 1 (sí)   /   0 (no)"]
["Edad: Años cumplidos del paciente, para recien nacidos  ejemlo : 6m (6meses)","Coordinacion interinstitucional:   1 (sí)   /   0 (no)"]
["Sexo: \"M\" Masculino  /  \"F\" Femenino  /  \"O\" Otro (según registro).","Coordinación extrainstitucional:   1 (sí)   /   0 (no)"]
["Diganostico: El que indica él médico tratante","Pases de visita:  1 (sí)   /   0 (no)"]
["Fecha de ingreso: dia/mes/año","Elaboración de constancias y citatorios:   1 (sí)   /   0 (no)"]
["Estado de Salud:  \"D\" Delicado  /  \"G\" Grave  /   \"MG\" Muy Grave","Visita domiciliaria:  \"R\" Realizada / \"P\" Programada / \"N\" No aplica."]
["Religión: Referida por el paciente o familiar","Trámite alta:  \"MB\" Max. Beneficio   /  \"AV\" Alta voluntaria  /  \"AM\" Alta por mejoría"]
["Pertinencia cultural: La pertinencia cultural es la capacidad de los servicios de salud y de la intervención de Trabajo Social para adaptarse, respetar e integrar los valores, creencias, costumbres, idioma y prácticas culturales de los pacientes y sus familias durante la atención. 1 (sí)   /   0 (no)","Reintegración de paciente a programas prioritarios:  1 (sí)   /   0 (no)"]
[null,"Trámite alta voluntaria:  1 (sí)   /   0 (no)"]
[null,"Referencia: (Indicar unidad destino si aplica).  1 (sí)   /   0 (no)"]
[null,"Contrareferencia:  1 (sí)   /   0 (no)"]
["Entrega de informes sociales: Si registró en bitácora y realizó la entrega de informes a familiares. 1 (sí)   /   0 (no)","Defunción:  1 (sí)   /   0 (no)"]
[null,"Observaciones / Notas:  Comentarios relevantes del caso"]
["Banco de sangre:  Requirió ocmponentes sanguineos.  1 (sí)   /   0 (no)"]
["Cumplio donación de sangre:    1 (sí)   /   0 (no)"]
["Cédula de Estudio Social y valoración Socioeconómica:  \"E\" Elaborada / \"P\" En proceso / \"N\" No realizada."]
["Lista de pertenecias: 1 (sí)   /   0 (no)  casos de pacientes desconocidos o con intervención legal, registrar de inmediato las pertenencias en el formato correspondiente"]
["Dinámica familiar:  \"F\" Funcional   /   \"A\" Alerta   /   \"D\" Disfuncional"]
["Red de apoyo:  1 (sí)   /   0 (no)"]
["Familiar responsable: Nombre completo del familiar responsable sin abreviaturas"]
["Número de telefono: del familiar responsable"]
["Lugar de residencia: Municipio donde vive el paciente"]
["Orientación:  1 (sí)   /   0 (no)"]
["Notas de Trabajo Social:  1 (sí)   /   0 (no)"]
["Caso médico legal: 1 (sí)   /   0 (no) (Si aplica, indicar seguimiento)."]
["Ruta NAME:  1 (sí)   /   0 (no)"]
["Código violeta:  1 (sí)   /   0 (no)"]

{"sheet":"Diario_Dig","index":2,"n_rows":42,"n_cols":37,"rows_kept":42,"merged":[[0,0,0,36],[1,0,1,1],[1,2,1,5],[1,8,1,11],[1,13,1,17],[1,19,1,36],[2,0,3,0],[2,1,3,1],[2,2,3,2],[2,3,3,3],[2,4,3,4],[2,5,3,5],[2,6,3,6],[2,7,3,7],[2,8,3,8],[2,9,3,9],[2,10,3,10],[2,11,3,11],[2,12,3,12],[2,13,3,13],[2,14,3,14],[2,15,3,15],[2,16,3,16],[2,17,3,17],[2,18,3,18],[2,19,3,19],[2,20,3,20],[2,21,3,21],[2,22,3,22],[2,24,3,24],[2,25,3,25],[2,26,3,26],[2,27,3,27],[2,28,3,28],[2,29,3,29],[2,30,3,30],[2,31,3,31],[2,32,3,32],[2,33,3,33],[2,35,3,35],[2,36,3,36],[39,16,41,22]]}
[]
["  Hospital / Udad Médica:",{"$nulls":5},"  Servicio / Área:",{"$nulls":5},"  Turno:",{"$nulls":5},"  Tabajo Social:"]
["Cama","Nombre del Paciente","Edad","Sexo","Diagnóstico / Motivo de consulta","Fecha de ingreso","Estado de salud","Religión","Pertinencia cultural","Entrega de informes sociales a familiares","Banco de sangre","Cumplio donación de sangre","Cédula de Estudio Social y valoración Socioeconómica","lista de pertenencias ","Dinamica familiar (riesgo social)","Red de apoyo ","Familiar responsable","Número de telefono ","Lugar de Residencia","Orientación","Notas de Trabajo Social ","Caso Médico Legal","Ruta NAME",null,"Localización de Familiares","Gestión de\nAlbergue","Gestión Traslado / Estudios","Coordinación interinstitucional","Coordinación extrainstitucional","Pase de Visita","Elaboración de constancias y citatorios.","Visita Domiciliaria","Trámite Alta","Referencia",null,"Defunción","Observaciones / Notas"]
[{"$nulls":23},"Código violeta",{"$nulls":10},"Contrareferencia"]
{"$rows_empty":34}
[{"$nulls":8},{"$f":"SUM(I5:I38)","v":0},{"$f":"SUM(J5:J38)","v":0},{"$f":"SUM(K5:K38)","v":0},{"$f":"SUM(L5:L38)","v":0},null,{"$f":"SUM(N5:N38)","v":0},null,{"$f":"SUM(P5:P38)","v":0},{"$nulls":3},{"$f":"SUM(T5:T38)","v":0},{"$f":"SUM(U5:U38)","v":0},{"$f":"SUM(V5:V38)","v":0},{"$f":"SUM(W5:W38)","v":0},{"$f":"SUM(X5:X38)","v":0},null,{"$f":"SUM(Z5:Z38)","v":0},0,0,0,0,0,null,null,{"$f":"SUM(AH5:AH38)","v":0},{"$f":"SUM(AI5:AI38)","v":0},{"$f":"SUM(AJ5:AJ38)","v":0}]
[null,null,"M",{"$f":"COUNTIF(D5:D38, \"M\")","v":0},null,"D",{"$f":"COUNTIF(G5:G38, \"D\")","v":0},{"$nulls":4},"E",{"$f":"COUNTIF(M5:M38, \"E\")","v":0},"F",{"$f":"COUNTIF(O5:O38, \"F\")","v":0},null,"Firma y Sello:_________________________________________________",{"$nulls":6},"R",{"$f":"COUNTIF(Y5:Y38, \"R\")","v":0},{"$nulls":5},"R",{"$f":"COUNTIF(AF5:AF38, \"R\")","v":0},"MB",{"$f":"COUNTIF(AG5:AG38, \"MB\")","v":0}]
[null,null,"F",{"$f":"COUNTIF(D5:D38, \"F\")","v":0},null,"G",{"$f":"COUNTIF(G5:G38, \"G\")","v":0},{"$nulls":4},"P",{"$f":"COUNTIF(M5:M38, \"P\")","v":0},"A",{"$f":"COUNTIF(O5:O38, \"A\")","v":0},{"$nulls":8},"P",{"$f":"COUNTIF(Y5:Y38, \"P\")","v":0},{"$nulls":5},"P",{"$f":"COUNTIF(AF5:AF38, \"P\")","v":0},"AV",{"$f":"COUNTIF(AG5:AG38, \"AV\")","v":0}]
[null,null,"O",{"$f":"COUNTIF(D5:D38, \"O\")","v":0},null,"MG",{"$f":"COUNTIF(G5:G38, \"MG\")","v":0},{"$nulls":4},"N",{"$f":"COUNTIF(M5:M38, \"N\")","v":0},"D",{"$f":"COUNTIF(O5:O38, \"D\")","v":0},{"$nulls":8},"N",{"$f":"COUNTIF(Y5:Y38, \"N\")","v":0},{"$nulls":5},"N",{"$f":"COUNTIF(AF5:AF38, \"N\")","v":0},"AM",{"$f":"COUNTIF(AG5:AG38, \"AM\")","v":0}]